bitfinex/quotes_ETHUSD_20240921
["timestamp","ask_amount","ask_price","bid_price","bid_amount"]
[1726942327659,0.29025,2571.7,2571.4,0.13851649]
[1726942327828,0.29025,2571.7,2571.3,2.456]
[1726942328260,0.29025,2571.7,2571.4,0.13848079]
[1726942328639,0.29025,2571.7,2571.3,2.456]
[1726942329015,3.002,2571.6,2570.8,2.3439]
[1726942329322,3.002,2571.4,2570.5,2.3439]
[1726942329648,3.002,2571.4,2570.9,0.13873147]
[1726942329824,3.002,2571.4,2570.5,2.3439]
[1726942330158,3.002,2571.4,2570.6,0.12997198]
[1726942330359,3.002,2571.4,2570.5,2.3439]
[1726942330662,2.452,2571.1,2570.7,0.13005044]
[1726942330860,0.55,2571.0,2570.6,0.13009703]
[1726942331062,0.55,2571.0,2570.5,2.3439]
[1726942331254,0.55,2571.0,2570.7,0.13005044]
[1726942331425,0.55,2571.0,2570.6,0.13009703]
[1726942331770,0.8502,2571.0,2570.8,0.13000386]
[1726942331932,0.8502,2571.0,2570.3,5.3439]
[1726942332126,0.8502,2571.0,2570.9,0.12999302]
[1726942332322,0.8502,2571.0,2570.3,5.3439]
[1726942332518,0.8502,2571.0,2570.9,0.13000493]
[1726942332723,0.8502,2571.0,2570.3,5.3439]
[1726942333060,0.3002,2571.3,2570.3,2.3439]
[1726942333061,0.55,2570.6,2570.3,2.3439]
[1726942333621,0.55,2570.6,2570.0,2.3439]
[1726942334370,0.55,2570.6,2570.0,2.88415208]
[1726942334520,0.55,2570.6,2570.1,0.54025208]
[1726942335757,0.55,2570.6,2570.2,0.13037274]
[1726942335954,0.8502,2570.6,2570.2,0.13037274]
[1726942340446,0.8502,2570.6,2570.0,2.3439]
[1726942340647,0.8502,2570.6,2570.3,0.13084433]
[1726942340873,0.8502,2570.6,2570.0,2.3439]
[1726942341086,0.8502,2570.6,2570.4,0.13079773]
[1726942341261,0.55,2570.4,2570.0,2.3439]
[1726942341458,0.55,2570.6,2570.0,2.3439]
[1726942350766,0.55,2570.6,2570.1,0.13096136]
[1726942354093,0.55,2570.6,2570.2,2.4312]
[1726942354293,0.55,2570.6,2570.3,0.13088008]
[1726942354483,0.55,2570.8,2570.4,2.4312]
[1726942354678,1.624142,2570.8,2570.4,2.4312]
[1726942360604,0.55,2570.8,2570.4,2.4312]
[1726942367165,0.55,2570.8,2570.5,0.1307035]
[1726942370470,0.55,2570.8,2570.4,2.4312]
[1726942371180,2.3612,2571.2,2570.4,2.4312]
[1726942371894,2.3612,2571.2,2570.6,2.3624]
[1726942372247,2.3612,2571.2,2570.7,0.13056564]
[1726942372650,0.55,2571.1,2570.7,0.13056564]
[1726942380102,0.55,2571.1,2570.6,2.3624]
[1726942380478,0.55,2571.1,2570.7,0.13037497]
[1726942380675,0.87114,2571.1,2570.7,0.13037497]
[1726942380882,0.87114,2571.1,2570.6,2.3624]
[1726942381079,0.87114,2571.1,2570.8,0.13032839]
[1726942381408,0.87114,2571.1,2570.6,2.3624]
[1726942381827,0.87114,2571.1,2570.7,0.13037497]
[1726942382330,0.55,2570.9,2570.6,2.3624]
[1726942382638,0.55,2571.1,2570.7,0.13037497]
[1726942390737,7.43,2571.6,2570.3,2.4203]
[1726942390738,0.55,2570.9,2570.3,2.4203]
[1726942390946,2.3972,2570.8,2570.4,0.13053857]
[1726942391164,0.84472,2570.7,2570.4,0.13053857]
[1726942391364,0.84472,2570.7,2570.3,2.4203]
[1726942392737,0.84472,2570.7,2570.4,0.13053857]
[1726942394590,0.55,2570.7,2570.4,0.13053857]
[1726942397374,0.55,2570.7,2570.1,2.4203]
[1726942397667,0.55,2570.7,2570.2,0.13073304]
[1726942414849,0.55,2570.5,2570.2,0.13073304]
[1726942420071,0.55,2570.5,2569.7,0.54025208]
[1726942420072,0.55,2570.3,2569.9,2.2731]
[1726942420434,0.55,2570.3,2570.0,0.13020142]
[1726942432181,2.4478,2570.2,2569.7,2.3277]
[1726942432487,0.55,2570.1,2569.8,0.13034831]
[1726942432981,0.55,2570.1,2569.9,0.13030169]
[1726942433187,0.55,2570.1,2569.7,2.3277]
[1726942433386,0.55,2570.1,2569.8,0.13034831]
[1726942433550,0.55,2570.1,2569.7,2.3277]
[1726942433751,0.55,2570.1,2569.8,0.13034831]
[1726942434004,0.55,2570.1,2569.7,2.3277]
[1726942434332,0.55,2570.1,2569.9,0.13030169]
[1726942434490,0.55,2570.1,2569.8,0.13034831]
[1726942434823,0.55,2570.1,2569.9,0.13030169]
[1726942435325,0.55,2570.1,2569.7,2.3277]
[1726942435502,0.55,2570.1,2570.0,0.13025508]
[1726942435703,0.55,2570.1,2569.7,2.3277]
[1726942435927,0.55,2570.1,2570.0,0.13025508]
[1726942436090,0.55,2570.1,2569.7,2.3277]
[1726942436930,0.55,2570.1,2569.8,0.13034831]
[1726942437237,0.55,2570.1,2569.7,2.3277]
[1726942437525,0.55,2570.1,2569.9,0.13030763]
[1726942437706,0.55,2570.1,2569.8,0.13035424]
[1726942437898,0.55,2570.1,2570.0,0.13026102]
[1726942438098,0.84978,2570.1,2569.9,0.13030763]
[1726942438398,0.84978,2570.1,2570.0,0.13026102]
[1726942438605,0.84978,2570.1,2569.7,2.3277]
[1726942438804,0.84978,2570.1,2569.8,0.13035424]
[1726942439001,0.84978,2570.1,2569.7,2.3277]
[1726942439328,0.55,2570.1,2569.8,0.13035424]
[1726942439717,0.55,2570.1,2569.7,2.3277]
[1726942440034,0.55,2570.1,2569.8,0.13035424]
[1726942440391,0.55,2570.1,2569.7,2.3277]
[1726942440592,0.55,2570.1,2569.8,0.13035424]
[1726942440819,0.55,2570.1,2569.7,2.3277]
[1726942441031,0.55,2570.1,2569.9,0.13030763]
[1726942441294,0.84978,2570.1,2569.8,0.13035424]
[1726942441623,0.84978,2570.1,2569.9,0.13030763]
[1726942442050,0.84978,2570.1,2569.7,2.3277]
[1726942442214,0.55,2570.1,2570.0,0.13026102]
[1726942442421,0.55,2570.1,2569.7,2.3277]
[1726942442634,0.55,2570.1,2570.0,0.12992768]
[1726942442959,0.55,2570.1,2569.7,2.3277]
[1726942443157,0.55,2570.1,2570.0,0.12992768]
[1726942443358,0.84978,2570.1,2569.7,2.3277]
[1726942443663,0.55,2570.1,2569.7,2.3277]
[1726942443824,0.55,2570.1,2569.8,0.13002091]
[1726942444260,0.55,2570.1,2569.7,2.3277]
[1726942444465,0.55,2570.1,2569.9,0.12997429]
[1726942444630,0.55,2570.1,2569.8,0.13002091]
[1726942444958,0.55,2570.1,2569.7,2.3277]
[1726942444959,0.55,2570.1,2569.9,0.12997429]
[1726942445464,0.55,2570.1,2570.0,0.12992768]
[1726942445867,0.55,2570.1,2569.7,2.3277]
[1726942446023,0.55,2570.1,2570.0,0.12992768]
[1726942446225,0.55,2570.1,2569.7,2.3277]
[1726942446838,0.55,2570.1,2569.8,0.13002091]
[1726942447242,0.55,2570.1,2569.7,2.3277]
[1726942447453,0.55,2570.1,2569.9,0.12997429]
[1726942447654,0.55,2570.1,2569.8,0.13002091]
[1726942447972,0.55,2570.1,2570.0,0.12992768]
[1726942448122,0.84978,2570.1,2569.9,0.12997429]
[1726942448326,0.84978,2570.1,2570.0,0.12992768]
[1726942448621,0.84978,2570.1,2569.7,2.3277]
[1726942448861,0.55,2570.1,2570.0,0.12992768]
[1726942449066,0.55,2570.1,2569.7,2.3277]
[1726942449270,0.55,2570.1,2570.0,0.12992768]
[1726942449481,7.43,2570.8,2569.8,1.00064166]
[1726942449644,2.3415,2570.7,2570.0,2.51092768]
[1726942449951,0.97715,2570.6,2570.0,2.381]
[1726942450781,0.55,2570.5,2570.0,2.381]
[1726942451780,0.55,2570.6,2570.1,2.381]
[1726942451983,0.55,2570.6,2570.2,0.12991791]
[1726942452280,1.58215,2570.6,2570.2,0.12991791]
[1726942454495,2.3415,2570.5,2570.2,0.12991791]
[1726942454706,2.8915,2570.3,2570.2,0.12991791]
[1726942455000,0.55,2570.2,2569.8,2.381]
[1726942455389,0.55,2570.2,2569.9,0.12997429]
[1726942464768,0.55,2570.2,2569.8,2.381]
[1726942464970,0.55,2570.2,2569.9,0.12998326]
[1726942475201,2.3415,2570.3,2569.9,0.12998326]
[1726942475404,2.3415,2570.3,2569.8,2.381]
[1726942475832,2.3415,2570.3,2569.9,0.12998326]
[1726942476036,2.3415,2570.3,2569.8,2.381]
[1726942476239,2.3415,2570.3,2569.9,0.12998326]
[1726942476736,2.3415,2570.3,2569.8,2.381]
[1726942477303,2.3415,2570.3,2569.9,0.12998326]
[1726942477718,2.3415,2570.3,2569.8,2.381]
[1726942478146,2.3415,2570.3,2569.9,0.12992366]
[1726942478548,2.3415,2570.3,2569.8,2.381]
[1726942478910,2.3415,2570.3,2569.9,0.47369039]
[1726942479158,2.3415,2570.3,2570.0,0.34376673]
[1726942479387,2.3415,2570.3,2569.8,2.381]
[1726942481066,2.3415,2570.3,2569.6,2.5187987]
[1726942481553,0.55,2570.2,2569.7,0.13001689]
[1726942481760,2.26,2570.1,2569.7,0.13001689]
[1726942494740,0.55,2570.0,2569.7,0.13001689]
[1726942501401,0.55,2569.8,2569.7,0.13001689]
[1726942503861,2.9123,2569.8,2569.7,0.13001689]
[1726942504066,3.20353,2569.8,2569.7,0.13001689]
[1726942504270,3.20353,2569.8,2569.6,0.0378987]
[1726942505781,3.20353,2569.8,2569.7,0.13010329]
[1726942506317,3.20353,2569.8,2569.6,0.0378987]
[1726942506822,3.20353,2569.8,2569.7,0.13010329]
[1726942507180,3.20353,2569.8,2569.6,0.0378987]
[1726942507492,0.870353,2569.7,2569.6,0.0378987]
[1726942513522,0.55,2569.7,2569.6,0.0378987]
[1726942513925,0.55,2569.9,2569.6,0.0378987]
[1726942515737,0.55,2569.9,2569.7,0.13042519]
[1726942522403,2.4326,2570.3,2569.8,2.2816]
[1726942523707,0.55,2570.2,2569.8,2.2816]
[1726942535886,0.55,2570.2,2569.9,0.13023059]
[1726942537717,0.50138923,2570.2,2569.9,0.13023059]
[1726942539406,0.50138923,2570.2,2569.8,2.2816]
[1726942539619,0.50138923,2570.2,2570.0,0.13018399]
[1726942539810,0.50138923,2570.2,2569.9,0.13023059]
[1726942540131,0.79478815,2570.2,2570.1,0.13013738]
[1726942540336,0.79478815,2570.2,2570.0,0.13018399]
[1726942540495,0.79478815,2570.2,2569.6,2.3920987]
[1726942540496,0.79478815,2570.2,2570.1,0.13011651]
[1726942541239,0.79478815,2570.2,2569.6,2.3920987]
[1726942541399,0.50138923,2570.2,2569.6,2.3920987]
[1726942541717,0.50138923,2570.2,2569.7,0.13030296]
[1726942542104,0.55,2570.0,2569.7,0.13030296]
[1726942548439,0.55,2570.0,2569.6,0.0378987]
[1726942548814,0.55,2570.0,2569.7,0.13023142]
[1726942549007,0.83293,2570.0,2569.7,0.13023142]
[1726942549348,0.83293,2570.0,2569.6,0.0378987]
[1726942549708,0.83293,2570.0,2569.7,0.13023142]
[1726942553141,0.55,2570.0,2569.7,0.13023142]
[1726942554914,0.55,2570.0,2569.8,0.13034874]
[1726942555158,0.55,2570.0,2569.6,0.01813012]
[1726942555352,0.55,2570.0,2569.9,0.12596108]
[1726942555559,2.298,2569.9,2569.6,0.01813012]
[1726942555861,0.8348,2569.8,2569.6,0.01813012]
[1726942562475,0.8348,2569.8,2569.7,0.12603642]
[1726942567405,0.55,2569.8,2569.7,0.12603642]
[1726942568201,0.55,2570.0,2569.7,0.12603642]
[1726942568607,2.4893,2570.1,2569.7,0.12603642]
[1726942569787,0.55,2570.0,2569.7,0.12603642]
[1726942576735,0.55,2570.2,2569.8,2.3362]
[1726942576887,1.55849011,2570.4,2569.9,0.12592531]
[1726942577086,1.55849011,2570.4,2569.8,2.3362]
[1726942579188,0.55,2570.4,2569.8,2.3362]
[1726942582758,0.55,2570.4,2569.9,0.07782232]
[1726942583055,0.55,2570.4,2569.9,2.3362]
[1726942583635,0.55,2570.4,2570.0,2.46205486]
[1726942588052,0.55,2570.4,2570.0,2.3362]
[1726942588254,0.55,2570.4,2570.1,0.63427508]
[1726942588768,0.55,2570.4,2570.2,0.76003673]
[1726942588967,0.55,2570.4,2570.3,0.63427508]
[1726942592864,0.84752,2570.4,2570.3,0.63427508]
[1726942593744,0.84752,2570.4,2570.0,2.3362]
[1726942594138,0.84752,2570.4,2569.6,0.01813012]
[1726942594139,0.84752,2570.4,2570.1,0.12572482]
[1726942594344,0.84752,2570.4,2570.3,0.63422767]
[1726942594968,0.84752,2570.4,2569.8,0.63422767]
[1726942595276,0.55,2570.2,2569.9,0.63422767]
[1726942595432,0.55,2570.2,2570.0,0.63422767]
[1726942595632,0.55,2570.2,2570.1,0.63422767]
[1726942595947,0.55,2570.2,2570.1,0.75995249]
[1726942597159,0.55,2570.2,2570.1,0.12572482]
[1726942598072,0.55,2570.2,2569.7,2.3591]
[1726942598231,0.55,2570.2,2570.1,0.12572482]
[1726942598433,0.55,2570.2,2569.7,2.3591]
[1726942598634,0.55,2570.2,2570.1,0.12572482]
[1726942598865,0.55,2570.2,2569.7,2.3591]
[1726942599069,0.55,2570.2,2570.1,0.12572482]
[1726942599267,0.55,2570.2,2569.7,2.3591]
[1726942599434,0.55,2570.2,2570.1,0.12572482]
[1726942599634,0.55,2570.2,2569.7,2.3591]
[1726942600158,0.55,2570.2,2569.8,0.12586465]
[1726942600671,0.55,2570.2,2569.7,2.3591]
[1726942601082,0.55,2570.2,2569.9,0.12581803]
[1726942601371,0.55,2570.2,2570.0,0.12577142]
[1726942601758,0.55,2570.2,2569.7,2.3591]
[1726942601759,2.9752,2570.2,2569.7,2.3591]
[1726942601935,3.27272,2570.2,2570.1,0.12572482]
[1726942602136,3.27272,2570.2,2569.7,2.3591]
[1726942602436,3.27272,2570.2,2569.8,0.12589741]
[1726942602843,3.27272,2570.2,2569.7,2.3591]
[1726942603052,3.27272,2570.2,2569.9,0.1258508]
[1726942603258,0.55,2570.0,2569.8,0.12589741]
[1726942603468,0.55,2570.0,2569.7,2.3591]
[1726942603643,0.55,2570.0,2569.9,0.1258508]
[1726942603846,0.55,2570.0,2569.8,0.12589741]
[1726942604051,0.55,2570.0,2569.7,2.3591]
[1726942604250,0.55,2570.0,2569.9,0.1258508]
[1726942604596,0.8802472,2570.0,2569.7,2.3591]
[1726942604955,0.8802472,2570.0,2569.8,0.12589741]
[1726942605273,0.8802472,2570.0,2569.7,2.3591]
[1726942605476,0.8802472,2570.0,2569.9,0.1258508]
[1726942605653,0.8802472,2570.0,2569.8,0.12589741]
[1726942605980,0.8802472,2570.0,2569.9,0.1258508]
[1726942606347,0.8802472,2570.0,2569.7,2.3591]
[1726942606554,0.8802472,2570.0,2569.8,0.12589741]
[1726942606879,0.8802472,2570.0,2569.7,2.3591]
[1726942607039,0.55,2570.0,2569.9,0.1258508]
[1726942607239,2.4252,2570.2,2569.7,2.3591]
[1726942607240,0.55,2570.1,2569.8,0.12589741]
[1726942607688,0.55,2570.1,2569.7,2.3591]
[1726942609487,0.55,2570.3,2569.7,2.3591]
[1726942609656,0.83207,2570.3,2569.7,2.3591]
[1726942612046,0.55,2570.1,2569.7,2.3591]
[1726942612384,0.55,2570.1,2569.8,0.12592723]
[1726942612879,0.55,2570.1,2569.7,2.3591]
[1726942613069,0.55,2570.1,2569.9,0.12588061]
[1726942613264,0.28207,2570.0,2569.8,0.12592723]
[1726942613468,0.55,2569.9,2569.7,2.3591]
[1726942613707,0.55,2570.1,2569.7,2.3591]
[1726942620882,0.55,2570.1,2569.8,0.12593617]
[1726942621217,0.55,2570.1,2569.7,2.3591]
[1726942621519,0.83207,2570.0,2569.9,0.12401009]
[1726942621733,0.83207,2570.0,2569.8,0.1240567]
[1726942621906,0.83207,2570.0,2569.9,0.12401009]
[1726942622219,0.83207,2570.0,2569.7,2.3591]
[1726942622429,0.83207,2570.0,2569.9,0.12401009]
[1726942622589,0.83207,2570.0,2569.8,0.1240567]
[1726942622795,0.83207,2570.0,2569.9,0.12401009]
[1726942623185,0.55,2569.9,2569.7,2.3591]
[1726942624336,2.8207,2569.9,2569.6,0.01813012]
[1726942624620,0.310277,2569.8,2569.6,0.01813012]
[1726942624829,0.55,2569.7,2569.6,0.01813012]
[1726942635651,0.55,2569.7,2569.6,0.14240227]
[1726942635811,0.55,2569.7,2569.6,0.01813012]
[1726942636325,0.55,2569.7,2569.6,0.14240227]
[1726942636534,0.8630977,2569.7,2569.6,0.01813012]
[1726942636839,0.8630977,2569.7,2569.6,0.14240227]
[1726942637215,0.8630977,2569.7,2569.6,0.01813012]
[1726942642173,3.3178977,2569.7,2569.6,0.01813012]
[1726942654923,0.8630977,2569.7,2569.6,0.01813012]
[1726942655132,0.55,2569.9,2569.6,0.01813012]
[1726942660148,0.55,2569.9,2569.7,0.39624858]
[1726942660346,0.55,2569.9,2569.6,0.01813012]
[1726942661682,2.2694,2569.8,2569.6,0.01813012]
[1726942661847,0.55,2569.7,2569.6,0.01813012]
[1726942662048,0.83194,2569.7,2569.6,0.01813012]
[1726942670091,3.16944,2569.7,2569.6,0.01813012]
[1726942684364,0.83194,2569.7,2569.6,0.01813012]
[1726942684755,0.83194,2569.7,2568.8,2.8315394]
[1726942684756,0.55,2569.4,2568.8,2.8315394]
[1726942685054,0.55,2569.2,2568.9,0.12494744]
[1726942685862,0.55,2569.2,2569.0,2.4419]
[1726942686037,0.55,2569.4,2569.0,2.4419]
[1726942686227,0.55,2569.4,2569.0,2.5668008]
[1726942686427,0.55,2569.4,2569.0,2.4419]
[1726942686762,0.63462711,2569.6,2569.1,2.4419]
[1726942686921,0.65194,2569.7,2569.1,2.4419]
[1726942688327,0.55,2569.6,2569.1,2.4419]
[1726942689943,0.55,2569.6,2569.2,0.12491192]
[1726942690157,0.55,2569.6,2569.1,2.4419]
[1726942690342,0.55,2569.6,2569.3,0.12486529]
[1726942690810,1.00406207,2569.6,2569.1,2.4419]
[1726942691370,1.00406207,2569.6,2569.2,0.12491192]
[1726942691869,1.00406207,2569.6,2569.1,2.4419]
[1726942692369,1.00406207,2569.6,2569.2,0.12491492]
[1726942692874,1.00406207,2569.6,2569.1,2.4419]
[1726942693243,1.00406207,2569.6,2569.3,0.12486829]
[1726942693534,1.00406207,2569.6,2569.1,2.4419]
[1726942693767,1.00406207,2569.6,2569.4,0.12482165]
[1726942693985,1.00406207,2569.6,2569.1,2.4419]
[1726942694376,1.00406207,2569.6,2569.2,0.12491492]
[1726942694751,1.00406207,2569.6,2569.1,2.4419]
[1726942694960,1.00406207,2569.6,2569.3,0.12486829]
[1726942695190,1.00406207,2569.6,2569.1,2.4419]
[1726942695692,1.00406207,2569.6,2569.2,0.12491492]
[1726942696662,1.00406207,2569.6,2569.1,2.4419]
[1726942696953,1.00406207,2569.6,2569.2,0.12491492]
[1726942697158,1.00406207,2569.6,2569.1,2.4419]
[1726942697437,1.00406207,2569.6,2569.3,0.12486829]
[1726942697776,1.00406207,2569.6,2569.1,2.4419]
[1726942698293,1.00406207,2569.6,2569.2,0.12491492]
[1726942698501,1.00406207,2569.6,2569.1,2.4419]
[1726942698701,1.00406207,2569.6,2569.3,0.12486829]
[1726942699071,1.00406207,2569.6,2569.1,2.4419]
[1726942699275,1.00406207,2569.6,2569.2,0.12491492]
[1726942699675,1.00406207,2569.6,2569.1,2.4419]
[1726942699891,1.00406207,2569.6,2569.3,0.12486829]
[1726942700198,1.00406207,2569.6,2569.1,2.4419]
[1726942700502,1.00406207,2569.6,2569.2,0.12491492]
[1726942701002,1.00406207,2569.6,2569.1,2.4419]
[1726942707068,0.55,2569.6,2569.1,2.4419]
[1726942707267,0.55,2569.7,2569.1,2.4419]
[1726942707496,1.22408068,2570.0,2569.1,2.4419]
[1726942707497,0.55,2569.9,2569.1,2.4419]
[1726942709277,0.55,2569.9,2569.2,2.49871192]
[1726942717252,2.979,2570.0,2569.2,2.49871192]
[1726942717449,2.429,2569.7,2569.2,2.49871192]
[1726942717611,0.55,2569.6,2569.2,2.3738]
[1726942717805,0.55,2569.6,2569.3,0.12460283]
[1726942718204,0.55,2569.6,2569.2,2.3738]
[1726942718448,0.55,2569.6,2569.4,0.12457708]
[1726942718645,0.8479,2569.5,2569.3,0.12462371]
[1726942718808,0.2979,2569.5,2569.2,2.3738]
[1726942719204,0.55,2569.4,2569.2,2.3738]
[1726942719568,0.55,2569.6,2569.2,2.3738]
[1726942719709,3.4699,2569.9,2569.2,2.3738]
[1726942719710,0.55,2569.8,2569.2,2.3738]
[1726942720047,0.40199,2569.7,2569.2,2.3738]
[1726942720415,0.55,2569.6,2569.2,2.3738]
[1726942721041,0.40199,2569.7,2569.2,2.3738]
[1726942722911,0.55,2569.6,2569.2,2.3738]
[1726942723119,2.979,2569.8,2569.2,2.3738]
[1726942723345,0.55,2569.6,2569.2,2.3738]
[1726942725735,0.55,2569.6,2569.3,0.12465949]
[1726942725965,0.55,2569.6,2569.2,2.3738]
[1726942726334,0.55,2569.6,2569.4,0.12461286]
[1726942726522,0.55,2569.6,2569.2,2.3738]
[1726942726830,0.55,2569.6,2569.5,0.12456624]
[1726942727147,0.888099,2569.6,2569.2,2.3738]
[1726942727325,0.888099,2569.6,2569.5,0.12456624]
[1726942727692,0.888099,2569.6,2569.2,2.3738]
[1726942728034,0.888099,2569.6,2569.3,0.12465949]
[1726942728525,0.888099,2569.6,2569.2,2.3738]
[1726942728751,0.888099,2569.6,2569.4,0.12461286]
[1726942728948,0.888099,2569.6,2569.2,2.3738]
[1726942729138,0.888099,2569.6,2569.5,0.12456624]
[1726942729357,0.888099,2569.6,2569.2,2.3738]
[1726942730063,0.888099,2569.6,2569.5,0.12456624]
[1726942730258,0.888099,2569.6,2569.2,2.3738]
[1726942730555,0.888099,2569.6,2569.3,0.12471616]
[1726942730762,0.888099,2569.6,2569.2,2.3738]
[1726942731112,0.888099,2569.6,2569.4,0.12466953]
[1726942731326,0.888099,2569.6,2569.2,2.3738]
[1726942731556,0.888099,2569.6,2569.5,0.1246229]
[1726942731757,0.888099,2569.6,2569.2,2.3738]
[1726942732054,0.888099,2569.6,2569.5,0.1246229]
[1726942732294,0.888099,2569.6,2569.2,2.3738]
[1726942732661,0.888099,2569.6,2569.3,0.12471616]
[1726942732992,0.888099,2569.6,2569.2,2.3738]
[1726942733197,0.888099,2569.6,2569.4,0.12466953]
[1726942733496,0.888099,2569.6,2569.2,2.3738]
[1726942733868,0.888099,2569.6,2569.3,0.12471616]
[1726942734274,0.888099,2569.6,2569.2,2.3738]
[1726942734772,0.888099,2569.6,2569.3,0.12471616]
[1726942734961,0.888099,2569.6,2569.2,2.3738]
[1726942735201,0.888099,2569.6,2569.4,0.12466953]
[1726942735391,0.888099,2569.6,2569.2,2.3738]
[1726942735565,0.888099,2569.6,2569.5,0.1246229]
[1726942735764,0.888099,2569.6,2569.2,2.3738]
[1726942736005,0.888099,2569.6,2569.5,0.1246229]
[1726942736300,0.888099,2569.6,2569.2,2.3738]
[1726942736744,0.888099,2569.6,2569.3,0.12471616]
[1726942737198,0.888099,2569.6,2569.2,2.3738]
[1726942737397,0.888099,2569.6,2569.4,0.12466953]
[1726942737560,0.888099,2569.6,2569.2,2.3738]
[1726942737764,0.888099,2569.6,2569.5,0.1246229]
[1726942738003,0.888099,2569.6,2569.2,2.3738]
[1726942738303,0.888099,2569.6,2569.5,0.1246229]
[1726942738462,0.888099,2569.6,2569.2,2.3738]
[1726942738898,0.888099,2569.6,2569.3,0.12471616]
[1726942739306,0.888099,2569.6,2569.2,2.3738]
[1726942739609,0.888099,2569.6,2569.3,0.12471616]
[1726942739786,0.888099,2569.6,2569.2,2.3738]
[1726942740018,0.888099,2569.6,2569.4,0.12466953]
[1726942740306,0.888099,2569.6,2569.2,2.3738]
[1726942740806,0.888099,2569.6,2569.3,0.12471616]
[1726942741009,0.55,2569.8,2569.2,2.3738]
[1726942741211,0.55,2569.8,2569.3,2.48671616]
[1726942744319,0.55,2569.9,2569.3,2.48671616]
[1726942744615,2.2862,2570.0,2569.3,2.362]
[1726942744616,0.55,2570.0,2569.3,2.362]
[1726942744788,1.57662,2570.0,2569.3,2.362]
[1726942748217,0.55,2569.8,2569.3,2.362]
[1726942748433,0.55,2569.8,2569.4,0.12460391]
[1726942752295,0.55,2569.8,2569.3,2.362]
[1726942752910,0.55,2569.8,2569.4,0.12458304]
[1726942753124,0.28569,2569.7,2569.4,0.12458304]
[1726942757221,0.55,2569.8,2569.4,0.12458304]
[1726942757429,0.55,2569.8,2569.3,2.362]
[1726942760039,0.55,2569.8,2569.4,0.1245402]
[1726942760256,0.55,2569.8,2569.5,2.4986]
[1726942760435,0.55,2569.9,2569.5,2.4986]
[1726942760820,1.450662,2569.9,2569.5,2.4986]
[1726942765438,0.55,2570.1,2569.5,2.4986]
[1726942770469,0.55,2569.9,2569.5,2.4986]
[1726942776265,0.55,2570.0,2569.5,2.4986]
[1726942780980,0.55,2569.8,2569.0,2.2862]
[1726942781130,0.55,2569.8,2569.6,0.1244559]
[1726942781331,0.96576807,2569.7,2569.0,2.2862]
[1726942781549,0.55,2569.6,2569.1,0.12468905]
[1726942782537,0.4,2569.6,2569.1,0.12468905]
[1726942784057,0.4,2569.6,2569.2,2.2862]
[1726942784531,0.4,2569.6,2569.3,0.12459578]
[1726942784751,0.4,2569.6,2569.2,2.2862]
[1726942784947,0.4,2569.6,2569.4,0.12454915]
[1726942785157,0.41576807,2569.7,2569.2,2.2862]
[1726942785347,0.41576807,2569.7,2569.5,0.12450252]
[1726942785636,0.41576807,2569.7,2569.2,2.2862]
[1726942785875,0.41576807,2569.7,2569.6,0.1244559]
[1726942786081,0.41576807,2569.7,2569.2,2.2862]
[1726942786383,0.41576807,2569.7,2569.3,0.12459578]
[1726942786532,0.41576807,2569.7,2569.2,2.2862]
[1726942786740,0.41576807,2569.7,2569.3,0.12459578]
[1726942787081,0.41576807,2569.7,2569.2,2.2862]
[1726942787267,0.55,2569.6,2569.4,0.12454915]
[1726942787618,0.55,2569.6,2569.2,2.2862]
[1726942787752,0.55,2569.6,2569.5,0.12450252]
[1726942787950,0.55,2569.6,2569.2,2.2862]
[1726942788143,0.55,2569.6,2569.5,0.12450252]
[1726942788347,0.55,2569.6,2569.2,2.2862]
[1726942788669,0.55,2569.6,2569.3,0.12459578]
[1726942789037,0.55,2569.6,2569.2,2.2862]
[1726942789268,0.55,2569.8,2569.4,2.39694915]
[1726942789450,0.55,2569.8,2569.4,2.2724]
[1726942789451,1.70876807,2569.8,2569.4,2.2724]
[1726942792845,1.45876807,2569.8,2569.4,2.2724]
[1726942795090,0.3,2569.8,2569.4,2.2724]
[1726942800903,0.55,2569.9,2569.4,2.2724]
[1726942801109,3.52308068,2570.1,2569.4,2.2724]
[1726942801664,1.22408068,2570.0,2569.4,2.2724]
[1726942802371,0.55,2569.9,2569.4,2.2724]
[1726942802588,1.11958318,2569.9,2569.4,2.2724]
[1726942807380,0.55,2570.0,2569.4,2.2724]
[1726942807576,0.55,2570.1,2569.4,2.2724]
[1726942811448,0.55,2570.2,2569.4,2.2724]
[1726942816317,1.77408068,2570.2,2569.4,2.2724]
[1726942822539,2.3013,2570.1,2569.4,2.2724]
[1726942822835,2.3013,2569.9,2569.4,2.2724]
[1726942823032,0.55,2569.8,2569.4,2.2724]
[1726942829299,0.55,2569.8,2569.4,0.48117566]
[1726942829615,0.55,2569.4,2568.8,0.0378987]
[1726942830838,0.55,2569.4,2568.9,0.12394054]
[1726942831040,0.29437,2569.3,2568.9,0.12394054]
[1726942832027,0.29437,2569.3,2568.9,0.17278675]
[1726942832469,0.29437,2569.3,2569.1,1.70257206]
[1726942832898,0.84437,2569.3,2569.2,0.17287143]
[1726942837340,9.8237,2569.8,2569.2,2.44137143]
[1726942837619,0.55,2569.7,2569.4,1.70257206]
[1726942839130,0.55,2569.8,2569.5,2.2685]
[1726942841849,0.55,2569.8,2569.6,1.70257206]
[1726942842145,3.37,2569.9,2569.6,1.70257206]
[1726942842146,0.55,2569.9,2569.6,1.70257206]
[1726942846841,0.55,2569.9,2569.5,2.2685]
[1726942852478,0.55,2569.9,2569.6,1.70257206]